bitfinex/quotes_BTCUSD_20251016
["timestamp","ask_amount","ask_price","bid_price","bid_amount"]
[1760578971431,5.3326413,111290.0,111280.0,0.00117307]
[1760578971432,5.33272583,111290.0,111280.0,0.00117307]
[1760578972071,5.33272583,111290.0,111280.0,0.11425307]
[1760578972266,5.33272583,111290.0,111280.0,0.00117307]
[1760578972267,5.34956569,111290.0,111280.0,0.00117307]
[1760578972692,5.34956569,111290.0,111280.0,0.11425307]
[1760578973120,5.34956569,111290.0,111280.0,0.00117307]
[1760578973251,5.35057314,111290.0,111280.0,0.11425307]
[1760578973454,5.35057314,111290.0,111280.0,0.00117307]
[1760578973675,5.35057314,111290.0,111280.0,0.11425307]
[1760578974879,5.35057314,111290.0,111280.0,0.00117307]
[1760578975314,5.35057314,111290.0,111280.0,0.11425307]
[1760578975527,5.35057314,111290.0,111280.0,0.00117307]
[1760578975729,5.44025522,111290.0,111280.0,0.00117307]
[1760578975906,5.44026326,111290.0,111280.0,0.00117307]
[1760578977685,5.43926326,111290.0,111280.0,0.00117307]
[1760578978105,5.44026326,111290.0,111280.0,0.11425307]
[1760578978308,5.44026326,111290.0,111280.0,0.00117307]
[1760578978459,5.44026326,111290.0,111280.0,0.11425307]
[1760578979244,5.44026326,111290.0,111280.0,0.00117307]
[1760578979660,5.44026326,111290.0,111280.0,0.11425307]
[1760578980078,5.44026326,111290.0,111280.0,0.11421307]
[1760578980333,5.44026326,111290.0,111280.0,0.00117307]
[1760578980546,5.05588551,111290.0,111280.0,0.11425307]
[1760578980757,5.44026326,111290.0,111280.0,0.11421307]
[1760578980968,5.44026636,111290.0,111280.0,0.11421307]
[1760578981178,5.44026636,111290.0,111280.0,0.00117307]
[1760578982111,5.44026636,111290.0,111280.0,0.11421307]
[1760578982321,5.44026636,111290.0,111280.0,0.00117307]
[1760578982950,5.44026636,111290.0,111280.0,0.11421307]
[1760578983163,5.44026636,111290.0,111280.0,0.00117307]
[1760578983384,5.44026759,111290.0,111280.0,0.11421307]
[1760578983595,4.96619972,111290.0,111280.0,0.11421307]
[1760578984472,4.96519972,111290.0,111280.0,0.11421307]
[1760578984892,4.96619972,111290.0,111280.0,0.11421307]
[1760578985109,4.96619998,111290.0,111280.0,0.11421307]
[1760578985796,4.96619998,111290.0,111280.0,0.13218575]
[1760578986006,4.96619998,111290.0,111280.0,0.11421307]
[1760578986859,4.96619998,111290.0,111280.0,0.13218575]
[1760578987545,4.96619998,111290.0,111280.0,0.01914575]
[1760578987789,5.35057979,111290.0,111280.0,0.11421307]
[1760578989170,4.96620204,111290.0,111280.0,0.11421307]
[1760578989375,5.01057979,111290.0,111280.0,0.13218575]
[1760578990164,5.01058555,111290.0,111280.0,0.13218575]
[1760578991051,5.01058555,111290.0,111280.0,0.11421307]
[1760578992122,5.35058555,111290.0,111280.0,0.11421307]
[1760578992997,5.35058555,111290.0,111280.0,0.00117307]
[1760578993417,5.35058555,111290.0,111280.0,0.11421307]
[1760578994291,5.35058555,111290.0,111280.0,0.11417307]
[1760578994521,5.32531341,111290.0,111280.0,0.00117307]
[1760578994742,5.32531341,111290.0,111280.0,0.11417307]
[1760578995178,5.33374107,111290.0,111280.0,0.11417307]
[1760578995401,5.32531341,111290.0,111280.0,0.11417307]
[1760578995622,4.94093566,111290.0,111280.0,0.13214575]
[1760578995845,0.041,111290.0,111280.0,0.19887256]
[1760578996060,0.041,111290.0,111280.0,0.11417307]
[1760578996274,0.041,111290.0,111280.0,0.19887256]
[1760578996490,0.041,111290.0,111280.0,0.31187256]
[1760578996677,0.041,111290.0,111280.0,0.29389988]
[1760578996903,0.04,111290.0,111280.0,0.29389988]
[1760578998489,0.38,111290.0,111280.0,0.29389988]
[1760578998868,0.38,111290.0,111280.0,0.18089988]
[1760578999076,0.38,111290.0,111280.0,0.29389988]
[1760578999856,0.38,111290.0,111280.0,0.18089988]
[1760579000079,0.38,111290.0,111280.0,0.29389988]
[1760579000326,0.38,111290.0,111280.0,0.18089988]
[1760579000856,0.03724412,111300.0,111290.0,0.17971066]
[1760579001094,4.79746912,111300.0,111290.0,0.17971066]
[1760579001334,4.79746912,111300.0,111290.0,0.29271066]
[1760579002079,0.41724412,111300.0,111290.0,0.17971066]
[1760579002310,0.41724412,111300.0,111290.0,0.67708841]
[1760579002539,0.41724412,111300.0,111290.0,0.29271066]
[1760579003257,0.41724412,111300.0,111290.0,0.38240078]
[1760579003785,0.41724412,111300.0,111290.0,0.38340078]
[1760579004528,0.07724412,111300.0,111290.0,0.65477853]
[1760579004772,0.04049921,111300.0,111290.0,0.6817934]
[1760579005534,0.04049921,111300.0,111290.0,0.7947934]
[1760579006294,0.04049921,111300.0,111290.0,0.79537988]
[1760579006778,0.04049921,111300.0,111290.0,0.68237988]
[1760579007009,0.04049921,111300.0,111290.0,0.79537988]
[1760579007252,0.04049921,111300.0,111290.0,0.68237988]
[1760579007996,0.04049921,111300.0,111290.0,0.79537988]
[1760579008738,0.04049921,111300.0,111290.0,0.68237988]
[1760579008991,0.04049921,111300.0,111290.0,0.79537988]
[1760579009738,0.04049921,111300.0,111290.0,0.68237988]
[1760579009976,0.04049921,111300.0,111290.0,0.79537988]
[1760579010432,0.04049921,111300.0,111290.0,0.68237988]
[1760579010709,0.04049921,111300.0,111290.0,0.79537988]
[1760579011582,0.04049921,111300.0,111290.0,0.68237988]
[1760579011833,0.04049921,111300.0,111290.0,0.79537988]
[1760579012823,0.04049921,111300.0,111290.0,0.68237988]
[1760579013039,0.00049921,111300.0,111290.0,0.71856216]
[1760579013259,0.00049921,111300.0,111290.0,0.44718441]
[1760579013476,0.00049921,111300.0,111290.0,0.71856216]
[1760579013693,0.00049921,111300.0,111290.0,0.83156216]
[1760579014127,0.00049921,111300.0,111290.0,0.71856216]
[1760579014343,0.00049921,111300.0,111290.0,0.83156216]
[1760579018113,4.38072421,111300.0,111290.0,0.02860135]
[1760579018327,5.67917422,111300.0,111290.0,0.11458648]
[1760579018555,5.77726544,111300.0,111290.0,0.00158648]
[1760579018779,5.79406881,111300.0,111290.0,0.00158648]
[1760579019005,5.82109185,111300.0,111290.0,0.04862648]
[1760579019234,5.82109185,111300.0,111290.0,0.11358648]
[1760579019459,5.05233635,111300.0,111290.0,0.11358648]
[1760579019720,5.4367141,111300.0,111290.0,0.00058648]
[1760579019942,5.4367141,111300.0,111290.0,0.11358648]
[1760579020174,5.4367141,111300.0,111290.0,0.00058648]
[1760579020394,5.4377141,111300.0,111290.0,0.00058648]
[1760579020857,5.82209185,111300.0,111290.0,0.11358648]
[1760579021496,5.82209185,111300.0,111290.0,0.00058648]
[1760579021717,5.82109185,111300.0,111290.0,0.00058648]
[1760579021935,5.82209185,111300.0,111290.0,0.11358648]
[1760579022150,5.82209185,111300.0,111290.0,0.00058648]
[1760579022580,5.60126064,111300.0,111290.0,0.11358648]
[1760579022999,5.60126064,111300.0,111290.0,0.00058648]
[1760579023461,5.6012639,111300.0,111290.0,0.11358648]
[1760579024391,5.6012639,111300.0,111290.0,0.00058648]
[1760579024609,5.8505639,111300.0,111290.0,0.11358648]
[1760579024847,5.8505639,111300.0,111290.0,0.00058648]
[1760579025076,5.8505639,111300.0,111290.0,0.11358648]
[1760579026467,5.46618615,111300.0,111290.0,0.11358648]
[1760579026679,5.37649603,111300.0,111290.0,0.11358648]
[1760579026897,5.76087378,111300.0,111290.0,0.00058648]
[1760579027349,5.37649603,111300.0,111290.0,0.11358648]
[1760579029216,4.99211828,111300.0,111290.0,0.11358648]
[1760579029471,5.37649603,111300.0,111290.0,0.00058648]
[1760579029709,5.37649603,111300.0,111290.0,0.11358648]
[1760579030391,5.37649603,111300.0,111290.0,0.00058648]
[1760579030639,5.37649603,111300.0,111290.0,0.11358648]
[1760579031328,5.37649603,111300.0,111290.0,0.00058648]
[1760579031537,5.37649603,111300.0,111290.0,0.11358648]
[1760579033419,5.76079263,111300.0,111290.0,0.00058648]
[1760579033639,5.76079263,111300.0,111290.0,0.11358648]
[1760579035661,5.76079264,111300.0,111290.0,0.11358648]
[1760579036604,5.76079013,111300.0,111290.0,0.11358648]
[1760579036719,5.76079013,111300.0,111290.0,0.00058648]
[1760579036918,5.76079013,111300.0,111290.0,0.11358648]
[1760579037399,5.76079013,111300.0,111290.0,0.00058648]
[1760579037597,5.76079013,111300.0,111290.0,0.11358648]
[1760579038551,5.70109562,111300.0,111290.0,0.11358648]
[1760579038784,5.88079013,111300.0,111290.0,0.11358648]
[1760579040663,5.88079013,111300.0,111290.0,0.00058648]
[1760579040889,5.88079013,111300.0,111290.0,0.11358648]
[1760579041621,5.88079013,111300.0,111290.0,0.00058648]
[1760579041862,5.88079013,111300.0,111290.0,0.11358648]
[1760579042100,5.88080318,111300.0,111290.0,0.11358648]
[1760579043962,5.44422982,111300.0,111290.0,0.11358648]
[1760579044181,5.46104657,111300.0,111290.0,0.11358648]
[1760579045173,5.46105331,111300.0,111290.0,0.11358648]
[1760579045647,0.55999451,111300.0,111290.0,0.11358648]
[1760579046112,1.28433682,111300.0,111290.0,0.00058648]
[1760579046390,0.89999451,111300.0,111290.0,0.11358648]
[1760579046585,0.68143584,111300.0,111290.0,0.11358648]
[1760579046798,1.06577815,111300.0,111290.0,0.13155754]
[1760579047009,1.06577815,111300.0,111290.0,0.01855754]
[1760579047221,1.06577815,111300.0,111290.0,0.13155754]
[1760579047635,1.06577815,111300.0,111290.0,0.11358648]
[1760579047865,1.06577815,111300.0,111290.0,0.00058648]
[1760579048057,1.06577815,111300.0,111290.0,0.11358648]
[1760579048472,1.31507815,111300.0,111290.0,0.00058648]
[1760579048685,0.75104133,111300.0,111290.0,0.29329714]
[1760579048909,0.16174133,111300.0,111290.0,0.38298726]
[1760579049146,0.16174133,111300.0,111290.0,0.76732957]
[1760579049351,0.16174133,111300.0,111290.0,0.65432957]
[1760579049582,0.16174133,111300.0,111290.0,0.76732957]
[1760579050483,0.16174133,111300.0,111290.0,0.38398726]
[1760579050697,0.16174133,111300.0,111290.0,0.38298726]
[1760579050920,0.16174133,111300.0,111290.0,0.26998726]
[1760579051131,0.16174133,111300.0,111290.0,0.27098726]
[1760579051341,0.16174133,111300.0,111290.0,0.38398726]
[1760579052100,0.16174133,111300.0,111290.0,0.38498726]
[1760579053099,0.16174133,111300.0,111290.0,0.27198726]
[1760579053304,0.16174133,111300.0,111290.0,0.38498726]
[1760579053520,0.16174133,111300.0,111290.0,0.65632957]
[1760579053722,0.16174133,111300.0,111290.0,0.76932957]
[1760579054449,0.16174133,111300.0,111290.0,0.38498726]
[1760579054566,0.16174133,111300.0,111290.0,0.27198726]
[1760579054986,0.16174133,111300.0,111290.0,0.38498726]
[1760579055362,0.16174133,111300.0,111290.0,0.27198726]
[1760579055710,0.16174133,111300.0,111290.0,0.38498726]
[1760579056471,0.16174133,111300.0,111290.0,0.76932957]
[1760579056706,0.16174133,111300.0,111290.0,0.65632957]
[1760579057135,0.16174133,111300.0,111290.0,0.76932957]
[1760579057953,1.11012046,111300.0,111290.0,0.00258648]
[1760579058163,0.72577815,111300.0,111290.0,0.00258648]
[1760579058362,0.72577815,111300.0,111290.0,0.11558648]
[1760579058549,0.72577815,111300.0,111290.0,0.00258648]
[1760579058758,0.72577815,111300.0,111290.0,0.00158648]
[1760579059115,0.72577815,111300.0,111290.0,0.11458648]
[1760579059530,5.61001346,111300.0,111290.0,0.00058648]
[1760579059999,5.61001346,111300.0,111290.0,0.11358648]
[1760579060814,5.61001346,111300.0,111290.0,0.00058648]
[1760579061734,5.62683403,111300.0,111290.0,0.11358648]
[1760579061978,5.63524493,111300.0,111290.0,0.00058648]
[1760579062630,5.63524493,111300.0,111290.0,0.11358648]
[1760579063067,5.63524493,111300.0,111290.0,0.00058648]
[1760579063287,5.63524493,111300.0,111290.0,0.11358648]
[1760579063509,5.63524493,111300.0,111290.0,0.00058648]
[1760579064167,5.63524493,111300.0,111290.0,0.11358648]
[1760579064382,5.63524493,111300.0,111290.0,0.00058648]
[1760579064594,5.63524493,111300.0,111290.0,0.11358648]
[1760579064805,5.63524493,111300.0,111290.0,0.00058648]
[1760579065257,5.63524493,111300.0,111290.0,0.11358648]
[1760579066678,5.63524493,111300.0,111290.0,0.00058648]
[1760579067113,5.63524493,111300.0,111290.0,0.11358648]
[1760579067329,5.72493505,111300.0,111290.0,0.00058648]
[1760579067534,6.10927736,111300.0,111290.0,0.00058648]
[1760579067737,5.72493505,111300.0,111290.0,0.00058648]
[1760579068032,5.72493505,111300.0,111290.0,0.11358648]
[1760579068437,5.72493505,111300.0,111290.0,0.00058648]
[1760579068664,6.10927736,111300.0,111290.0,0.00058648]
[1760579068889,5.72493505,111300.0,111290.0,0.00058648]
[1760579069093,5.72493505,111300.0,111290.0,0.11358648]
[1760579069294,5.72493505,111300.0,111290.0,0.00058648]
[1760579069497,6.10927736,111300.0,111290.0,0.00058648]
[1760579069700,5.72493505,111300.0,111290.0,0.11358648]
[1760579070345,5.72593505,111300.0,111290.0,0.00058648]
[1760579070557,5.72593505,111300.0,111290.0,0.11358648]
[1760579070781,0.51975912,111260.0,111250.0,0.0717521]
[1760579070982,5.19399443,111260.0,111250.0,0.0717521]
[1760579071403,0.17977528,111250.0,111240.0,0.05396]
[1760579071606,0.57411759,111250.0,111240.0,0.05396]
[1760579072008,0.57416743,111250.0,111240.0,0.05396]
[1760579072213,0.6044695,111250.0,111240.0,0.05396]
[1760579072622,0.22012719,111250.0,111240.0,0.05396]
[1760579072830,0.22012719,111250.0,111240.0,0.16696]
[1760579073039,0.22012719,111250.0,111240.0,0.05396]
[1760579073262,0.04035191,111250.0,111240.0,0.05496]
[1760579073542,0.22012719,111250.0,111240.0,0.05496]
[1760579073961,1.03415962,111250.0,111240.0,0.05496]
[1760579074175,5.19405262,111250.0,111240.0,0.001]
[1760579074584,5.19405262,111250.0,111240.0,0.114]
[1760579074719,5.19405262,111250.0,111240.0,0.001]
[1760579075358,0.51979189,111240.0,111220.0,0.20679704]
[1760579075606,0.51979189,111240.0,111230.0,0.113]
[1760579075607,0.9141342,111240.0,111230.0,0.113]
[1760579075966,0.9141342,111240.0,111230.0,0.01798076]
[1760579076177,0.9141342,111240.0,111230.0,0.13098076]
[1760579076371,0.9141342,111240.0,111230.0,0.01798076]
[1760579076549,0.9141342,111240.0,111230.0,0.13098076]
[1760579076755,0.9141342,111240.0,111230.0,0.113]
[1760579076955,0.9141342,111240.0,111230.0,0.00352098]
[1760579077158,0.9141342,111240.0,111230.0,0.11652098]
[1760579077609,5.45836951,111240.0,111230.0,0.00352098]
[1760579077929,5.0740272,111240.0,111230.0,0.11652098]
[1760579078207,5.45836951,111240.0,111230.0,0.11652098]
[1760579078420,5.0740272,111240.0,111230.0,0.00352098]
[1760579078589,5.0740272,111240.0,111230.0,0.11652098]
[1760579079319,5.0740272,111240.0,111230.0,0.00352098]
[1760579079462,5.0740272,111240.0,111230.0,0.11652098]
[1760579080593,4.7340272,111240.0,111230.0,0.11652098]
[1760579080794,4.7340272,111240.0,111230.0,0.00352098]
[1760579081073,4.7340272,111240.0,111230.0,0.11652098]
[1760579081206,4.7340272,111240.0,111230.0,0.11656098]
[1760579081406,4.34968489,111240.0,111230.0,0.13245606]
[1760579081848,4.7340272,111240.0,111230.0,0.11656098]
[1760579082044,4.34968489,111240.0,111230.0,0.13263381]
[1760579082249,4.7340272,111240.0,111230.0,0.13263381]
[1760579082474,4.7340272,111240.0,111230.0,0.11656098]
[1760579082650,5.0740272,111240.0,111230.0,0.00352098]
[1760579082851,5.0740272,111240.0,111230.0,0.11656098]
[1760579083559,5.0740272,111240.0,111230.0,0.13454174]
[1760579083765,4.68968489,111240.0,111230.0,0.02150174]
[1760579083962,5.0740272,111240.0,111230.0,0.13454174]
[1760579084976,5.0740272,111240.0,111230.0,0.02150174]
[1760579085193,5.0740272,111240.0,111230.0,0.13454174]
[1760579086361,5.0740272,111240.0,111230.0,0.11656098]
[1760579086564,5.45836951,111240.0,111230.0,0.11656098]
[1760579087188,5.45836951,111240.0,111230.0,0.00352098]
[1760579087395,5.45836951,111240.0,111230.0,0.11656098]
[1760579088380,5.0740272,111240.0,111230.0,0.00352098]
[1760579088586,4.68968489,111240.0,111230.0,0.11656098]
[1760579088789,5.0740272,111240.0,111230.0,0.11656098]
[1760579089008,5.0740272,111240.0,111230.0,0.00352098]
[1760579089213,5.0740272,111240.0,111230.0,0.11656098]
[1760579089961,5.45836951,111240.0,111230.0,0.11656098]
[1760579091088,5.4751519,111240.0,111230.0,0.11656098]
[1760579092509,5.4751519,111240.0,111230.0,0.02150174]
[1760579092673,5.4751519,111240.0,111230.0,0.13454174]
[1760579093541,5.09115746,111240.0,111230.0,0.11656098]
[1760579096298,5.09118145,111240.0,111230.0,0.11656098]
[1760579098001,5.09118145,111240.0,111230.0,0.00352098]
[1760579098212,5.09118145,111240.0,111230.0,0.11656098]
[1760579098853,5.09118145,111240.0,111230.0,0.00352098]
[1760579099088,5.09118145,111240.0,111230.0,0.11656098]
[1760579099314,5.09960191,111240.0,111230.0,0.11656098]
[1760579100444,5.09960191,111240.0,111230.0,0.00352098]
[1760579100657,5.09960191,111240.0,111230.0,0.11656098]
[1760579101289,5.09960191,111240.0,111230.0,0.00352098]
[1760579101500,5.09960191,111240.0,111230.0,0.11656098]
[1760579102527,5.48429209,111240.0,111230.0,0.11656098]
[1760579102735,5.48429209,111240.0,111230.0,0.00352098]
[1760579102939,5.48429209,111240.0,111230.0,0.11656098]
[1760579103993,5.48429209,111240.0,111230.0,0.00352098]
[1760579104191,5.48429209,111240.0,111230.0,0.11656098]
[1760579104610,4.71491173,111240.0,111230.0,0.11656098]
[1760579104821,5.48429209,111240.0,111230.0,0.00352098]
[1760579105030,5.48429209,111240.0,111230.0,0.11656098]
[1760579105476,5.09960191,111240.0,111230.0,0.00352098]
[1760579105693,5.09960191,111240.0,111230.0,0.11656098]
[1760579105926,4.71491173,111240.0,111230.0,0.11656098]
[1760579106155,5.48434845,111240.0,111230.0,0.11656098]
[1760579107570,5.48434845,111240.0,111230.0,0.00352098]
[1760579107805,5.48434845,111240.0,111230.0,0.11656098]
[1760579108519,5.09963009,111240.0,111230.0,0.11656098]
[1760579111905,5.13585909,111240.0,111230.0,0.11656098]
[1760579112153,5.13585909,111240.0,111230.0,0.00352098]
[1760579112408,5.13585909,111240.0,111230.0,0.11656098]
[1760579115149,5.13585909,111240.0,111230.0,0.00352098]
[1760579115357,5.12743863,111240.0,111230.0,0.00352098]
[1760579115567,5.12743863,111240.0,111230.0,0.11656098]
[1760579116227,5.12743863,111240.0,111230.0,0.00352098]
[1760579116444,5.12743863,111240.0,111230.0,0.11656098]
[1760579116893,0.81152474,111240.0,111230.0,0.00352098]
[1760579117123,0.01680638,111240.0,111230.0,0.20130934]
[1760579117351,0.59484682,111250.0,111230.0,0.29636717]
[1760579117689,0.95171814,111250.0,111240.0,0.11304]
[1760579117895,0.56699978,111250.0,111240.0,0.11304]
[1760579118431,0.57699851,111250.0,111240.0,0.13101914]
[1760579118860,0.38722323,111250.0,111240.0,0.31081058]
[1760579119100,0.95171687,111250.0,111240.0,0.11304]
[1760579119303,0.95171687,111250.0,111240.0,0.13101914]
[1760579119856,0.96171687,111250.0,111220.0,0.18881384]
[1760579120063,0.38471836,111230.0,111220.0,0.08969012]
[1760579120270,0.56452596,111230.0,111220.0,0.20273012]
[1760579120467,0.38471836,111230.0,111220.0,0.11304]
[1760579120656,0.38471836,111230.0,111220.0,0.19780614]
[1760579121035,0.56452596,111230.0,111220.0,0.11304]
[1760579122131,0.56452596,111230.0,111220.0,0.11404]
[1760579122686,0.38471836,111230.0,111220.0,0.11404]
[1760579122892,0.56452596,111230.0,111220.0,0.001]
[1760579123097,0.56452596,111230.0,111220.0,0.11814818]
[1760579123509,0.56452596,111230.0,111220.0,0.00510818]
[1760579123711,0.56452596,111230.0,111220.0,0.11814818]
[1760579124541,0.56452596,111230.0,111220.0,0.00510818]
[1760579124752,4.77064796,111230.0,111220.0,0.00510818]
[1760579124958,4.78751576,111230.0,111220.0,0.00510818]
[1760579125167,5.21720588,111230.0,111220.0,0.00510818]
[1760579125396,5.60192424,111230.0,111220.0,0.00510818]
[1760579125597,5.22563612,111230.0,111220.0,0.00510818]
[1760579125798,5.23385266,111230.0,111220.0,0.11814818]
[1760579126012,5.24206148,111230.0,111220.0,0.00410818]
[1760579126432,5.62677984,111230.0,111220.0,0.00410818]
[1760579126672,5.62677984,111230.0,111220.0,0.11714818]
[1760579127086,5.62677984,111230.0,111220.0,0.00410818]
[1760579127932,5.24206148,111230.0,111220.0,0.00410818]
[1760579128141,5.24206148,111230.0,111220.0,0.11714818]
[1760579128350,5.24206148,111230.0,111220.0,0.00410818]
[1760579128553,5.22563612,111230.0,111220.0,0.00410818]
[1760579128758,5.21720588,111230.0,111220.0,0.11714818]
[1760579129177,5.21720588,111230.0,111220.0,0.00410818]
[1760579129356,5.61034331,111230.0,111220.0,0.00410818]
[1760579129590,5.61034331,111230.0,111220.0,0.11714818]
[1760579130009,5.61034331,111230.0,111220.0,0.00410818]
[1760579130219,5.61034331,111230.0,111220.0,0.11714818]
[1760579130434,5.61034331,111230.0,111220.0,0.00410818]
[1760579130636,5.61034331,111230.0,111220.0,0.11714818]
[1760579130763,5.85964331,111230.0,111220.0,0.11714818]
[1760579131323,5.46650588,111230.0,111220.0,0.11714818]
[1760579131522,5.46650588,111230.0,111220.0,0.00410818]
[1760579131685,5.46650588,111230.0,111220.0,0.11714818]
[1760579132087,5.46650588,111230.0,111220.0,0.00410818]
[1760579132494,5.46650588,111230.0,111220.0,0.11714818]
[1760579132849,5.46650588,111230.0,111220.0,0.00410818]
[1760579133111,5.46650588,111230.0,111220.0,0.11714818]
[1760579133333,5.46650588,111230.0,111220.0,0.00410818]
[1760579134082,5.46650588,111230.0,111220.0,0.11714818]
[1760579134284,5.46650588,111230.0,111220.0,0.00410818]
[1760579134905,5.46650588,111230.0,111220.0,0.11714818]
[1760579135079,5.46650588,111230.0,111220.0,0.00410818]
[1760579135283,5.08178752,111230.0,111220.0,0.11714818]
[1760579135483,5.46650588,111230.0,111220.0,0.11714818]
[1760579135753,5.46650588,111230.0,111220.0,0.00410818]
[1760579135961,5.46650588,111230.0,111220.0,0.11714818]
[1760579136693,5.46650588,111230.0,111220.0,0.00410818]
[1760579136892,5.46650588,111230.0,111220.0,0.11714818]
[1760579138787,5.46650588,111230.0,111220.0,0.00410818]
[1760579139008,5.46650588,111230.0,111220.0,0.11714818]
[1760579141719,5.46650588,111230.0,111220.0,0.00410818]
[1760579141924,5.46650588,111230.0,111220.0,0.11714818]
[1760579143817,5.37681576,111230.0,111220.0,0.11714818]
[1760579144031,5.35994796,111230.0,111220.0,0.11714818]
[1760579144247,5.35994796,111230.0,111220.0,0.00410818]
[1760579144658,5.35994796,111230.0,111220.0,0.11714818]
[1760579145580,5.35994796,111230.0,111220.0,0.00410818]
[1760579145805,5.35994796,111230.0,111220.0,0.11714818]
[1760579146859,5.35994796,111230.0,111220.0,0.00410818]
[1760579147065,5.35994796,111230.0,111220.0,0.11714818]
[1760579148026,5.35994796,111230.0,111220.0,0.00410818]
[1760579148243,5.35994796,111230.0,111220.0,0.11714818]
[1760579148639,5.35994796,111230.0,111220.0,0.00410818]
[1760579148851,5.35994796,111230.0,111220.0,0.11714818]
[1760579151352,5.37678426,111230.0,111220.0,0.11714818]
[1760579152270,5.37678426,111230.0,111220.0,0.00410818]
[1760579152478,5.37678426,111230.0,111220.0,0.11714818]
[1760579152887,5.37678426,111230.0,111220.0,0.00410818]
[1760579153142,5.37678426,111230.0,111220.0,0.11714818]
[1760579155358,5.3947248,111230.0,111220.0,0.00410818]
[1760579155512,6.25446637,111230.0,111220.0,0.00410818]
[1760579155732,6.26289228,111230.0,111220.0,0.11714818]
[1760579156207,6.26289235,111230.0,111220.0,0.11714818]
[1760579156410,5.87796908,111230.0,111220.0,0.11714818]
[1760579157425,6.26289235,111230.0,111220.0,0.11714818]
[1760579157825,5.87796908,111230.0,111220.0,0.11714818]
[1760579158304,5.87796908,111230.0,111220.0,0.00410818]
[1760579158504,5.87796908,111230.0,111220.0,0.11714818]
[1760579158644,5.8695431,111230.0,111220.0,0.11714818]
[1760579158843,6.26289281,111230.0,111220.0,0.00410818]
[1760579159045,5.87796954,111230.0,111220.0,0.11714818]
[1760579159726,5.87796954,111230.0,111220.0,0.00410818]
[1760579159942,5.87796954,111230.0,111220.0,0.11714818]
[1760579160933,5.87796954,111230.0,111220.0,0.00410818]
[1760579161154,5.87798661,111230.0,111220.0,0.11714818]
[1760579161353,6.26290988,111230.0,111220.0,0.11714818]
[1760579162813,6.26290988,111230.0,111220.0,0.00410818]
[1760579163222,6.26290988,111230.0,111220.0,0.11714818]
[1760579163433,6.32807196,111230.0,111220.0,0.11714818]
[1760579163639,6.26290988,111230.0,111220.0,0.11714818]
[1760579163851,6.26290988,111230.0,111220.0,0.00410818]
[1760579164582,6.43471543,111230.0,111220.0,0.00410818]
[1760579164811,6.04979216,111230.0,111220.0,0.00410818]
[1760579165859,6.07683744,111230.0,111220.0,0.00410818]
[1760579166069,6.04065516,111230.0,111220.0,0.00410818]
[1760579167957,6.02271462,111230.0,111220.0,0.00410818]
[1760579168163,6.04065516,111230.0,111220.0,0.00410818]
[1760579169017,5.94202416,111230.0,111220.0,0.00410818]
[1760579171547,6.34518917,111230.0,111220.0,1e-08]
[1760579171750,6.02312971,111230.0,111220.0,1e-08]
[1760579173017,6.02312971,111230.0,111200.0,1e-08]
[1760579173018,3.977491,111210.0,111200.0,1e-08]
[1760579173227,5.53179087,111210.0,111200.0,1e-08]
[1760579173457,0.17987229,111190.0,111180.0,0.0004]
[1760579173664,4.39388701,111190.0,111180.0,0.0004]
[1760579173873,4.75182755,111190.0,111180.0,0.0004]
[1760579174287,4.77887893,111190.0,111180.0,0.00089921]
[1760579174494,5.93364874,111190.0,111180.0,0.00089921]
[1760579175895,5.93464874,111190.0,111180.0,0.00089921]
[1760579178588,6.18394874,111190.0,111180.0,0.00089921]
[1760579178800,6.18394874,111190.0,111180.0,0.00324832]
[1760579181888,6.15689736,111190.0,111180.0,0.00324832]
[1760579183302,5.75403355,111190.0,111180.0,0.00324832]
[1760579184174,6.13895682,111190.0,111180.0,0.00324832]
[1760579184821,5.75403355,111190.0,111180.0,0.00324832]
[1760579185651,6.13895682,111190.0,111180.0,0.00324832]
[1760579186519,5.75403355,111190.0,111180.0,0.00324832]
[1760579187449,6.13895682,111190.0,111180.0,0.00324832]
[1760579187861,5.75403355,111190.0,111180.0,0.00324832]
[1760579188890,6.13895682,111190.0,111180.0,0.00324832]
[1760579189985,6.15689736,111190.0,111180.0,0.00324832]
[1760579191045,5.54086826,111190.0,111180.0,0.00324832]
[1760579191272,5.72074055,111190.0,111180.0,0.00324832]
[1760579191493,5.72074055,111190.0,111180.0,0.11632832]
[1760579192754,6.10566382,111190.0,111180.0,0.00324832]
[1760579192955,6.12360436,111190.0,111180.0,0.11632832]
[1760579193156,6.12360436,111190.0,111180.0,0.00324832]
[1760579205317,5.87430436,111190.0,111180.0,0.00324832]
[1760579207555,5.48938109,111190.0,111180.0,0.00324832]
[1760579208359,5.87430436,111190.0,111180.0,0.00324832]
[1760579210240,5.74917869,111190.0,111180.0,0.11632832]
[1760579210419,5.74917869,111190.0,111180.0,0.00324832]
[1760579210626,5.74917869,111190.0,111180.0,0.11632832]
[1760579210990,5.74917869,111190.0,111180.0,0.00324832]
[1760579211193,5.74917869,111190.0,111180.0,0.11632832]
[1760579211410,5.74917869,111190.0,111180.0,0.00324832]
[1760579215556,5.36493886,111190.0,111180.0,0.00324832]
[1760579215782,5.61988143,111180.0,111170.0,1e-08]
[1760579215998,5.86640515,111180.0,111170.0,0.0001498]
[1760579216212,5.8925544,111180.0,111170.0,0.0001498]
[1760579216386,5.50728941,111180.0,111170.0,0.00073723]
[1760579216849,5.8925544,111180.0,111170.0,0.00073723]
[1760579217077,5.8935544,111180.0,111170.0,0.00073723]
[1760579217806,5.50828941,111180.0,111170.0,0.00073723]
[1760579224667,5.48214016,111180.0,111170.0,0.00073723]
[1760579228020,5.48214016,111180.0,111170.0,0.11381723]
[1760579232643,5.48214016,111180.0,111170.0,0.00073723]
[1760579232852,5.48214016,111180.0,111170.0,0.11381723]
[1760579234719,4.66718505,111180.0,111170.0,0.11381723]
[1760579235032,5.39245004,111180.0,111170.0,0.11381723]
[1760579235448,5.00618505,111180.0,111170.0,0.11381723]
[1760579235661,5.00618505,111180.0,111170.0,0.00073723]
[1760579235881,4.66618505,111180.0,111170.0,0.11381723]
[1760579236080,4.64935145,111180.0,111170.0,0.11381723]
[1760579236283,4.98935145,111180.0,111170.0,0.11381723]
[1760579236620,5.37461644,111180.0,111170.0,0.11381723]
[1760579236848,5.37461644,111180.0,111170.0,0.00073723]
[1760579237024,5.37461644,111180.0,111170.0,0.11381723]
[1760579237430,5.37461644,111180.0,111170.0,0.00073723]
[1760579237631,5.37461644,111180.0,111170.0,0.11381723]
[1760579237985,5.37461644,111180.0,111170.0,0.00073723]
[1760579238187,5.37461644,111180.0,111170.0,0.11381723]
[1760579238382,5.39146913,111180.0,111170.0,0.11381723]
[1760579239862,5.39146913,111180.0,111170.0,0.00073723]
[1760579240084,5.39146913,111180.0,111170.0,0.11381723]
[1760579240284,5.37461644,111180.0,111170.0,0.11381723]
[1760579240485,5.37461644,111180.0,111170.0,0.00073723]
[1760579240756,4.98935145,111180.0,111170.0,0.11381723]
[1760579241273,4.98935145,111180.0,111170.0,0.00073723]
[1760579241476,4.98935145,111180.0,111170.0,0.11377723]
[1760579242880,5.37461644,111180.0,111170.0,0.11377723]
[1760579243620,4.98935145,111180.0,111170.0,0.13176769]